fUSD/lending_fUSD_20241225
["ID","MTS","AMOUNT","RATE_DAILY","PERIOD"]
[346611678,1735125057203,-669.56,0.00011287,2]
[346611679,1735125057213,-387.54557018,0.00011287,2]
[346611680,1735125057223,-500.0,0.00011287,2]
[346611681,1735125057233,-726.31,0.00011287,2]
[346611682,1735125057243,-538.54,0.00011287,2]
[346611683,1735125057254,-500.0,0.00011287,2]
[346611684,1735125057264,-777.03,0.00011287,2]
[346611685,1735125057275,-500.0,0.00011287,2]
[346611686,1735125057285,-500.0,0.00011287,2]
[346611687,1735125057296,-672.42,0.00011287,2]
[346611688,1735125057306,-500.0,0.00011287,2]
[346611689,1735125057316,-500.0,0.00011287,2]
[346611690,1735125057326,-500.0,0.00011287,2]
[346611691,1735125057336,-586.24,0.00011287,2]
[346611692,1735125057346,-506.6202024,0.00011287,2]
[346611693,1735125057356,-867.6,0.00011287,2]
[346611694,1735125057367,-859.5,0.00011287,2]
[346611695,1735125057376,-1831.55,0.00011287,2]
[346611696,1735125057386,-500.0,0.00011287,2]
[346611697,1735125057396,-588.68640571,0.00011287,2]
[346611698,1735125057405,-572.68,0.00011287,2]
[346611699,1735125057415,-693.11,0.00011287,2]
[346611700,1735125057428,-500.0,0.00011287,2]
[346611701,1735125057438,-612.5,0.00011287,2]
[346611702,1735125057448,-1077.16,0.00011287,2]
[346611703,1735125057458,-750.32,0.00011287,2]
[346611704,1735125057468,-623.05,0.00011287,2]
[346611705,1735125057478,-500.0,0.00011287,2]
[346611706,1735125057489,-986.76,0.00011287,2]
[346611707,1735125057499,-500.0,0.00011287,2]
[346611708,1735125057509,-540.07,0.00011287,2]
[346611709,1735125057519,-500.0,0.00011287,2]
[346611710,1735125057529,-500.0,0.00011287,2]
[346611711,1735125057539,-980.7,0.00011287,2]
[346611712,1735125057549,-1057.52,0.00011287,2]
[346611713,1735125057559,-732.99,0.00011287,2]
[346611714,1735125057568,-500.0,0.00011287,2]
[346611715,1735125057578,-500.0,0.00011287,2]
[346611716,1735125057588,-857.42,0.00011287,2]
[346611717,1735125057598,-760.48,0.00011287,2]
[346611718,1735125057607,-394.82095245,0.00011287,2]
[346611719,1735125057617,-500.0,0.00011287,2]
[346611720,1735125057626,-1078.99,0.00011287,2]
[346611721,1735125057636,-964.73,0.00011287,2]
[346611722,1735125057647,-772.08,0.00011287,2]
[346611723,1735125057660,-500.0,0.00011287,2]
[346611724,1735125057670,-725.04,0.00011287,2]
[346611725,1735125057683,-655.94,0.00011287,2]
[346611726,1735125057693,-500.0,0.00011287,2]
[346611727,1735125057703,-552.57,0.00011287,2]
[346611728,1735125057712,-500.0,0.00011287,2]
[346611729,1735125057722,-500.0,0.00011287,2]
[346611730,1735125057732,-788.81,0.00011287,2]
[346611731,1735125057743,-554.96,0.00011287,2]
[346611732,1735125057752,-629.41,0.00011287,2]
[346611733,1735125057761,-571.5,0.00011287,2]
[346611734,1735125057771,-838.58,0.00011287,2]
[346611735,1735125057779,-823.74,0.00011287,2]
[346611736,1735125057789,-500.0,0.00011287,2]
[346611737,1735125057799,-1226.46,0.00011287,2]
[346611738,1735125057809,-638.41,0.00011287,2]
[346611739,1735125057818,-607.07,0.00011287,2]
[346611740,1735125057827,-500.0,0.00011287,2]
[346611741,1735125057836,-574.9,0.00011287,2]
[346611742,1735125057845,-500.0,0.00011287,2]
[346611743,1735125057855,-593.35,0.00011287,2]
[346611744,1735125057864,-500.0,0.00011287,2]
[346611745,1735125057873,-637.77908365,0.00011287,2]
[346611746,1735125057883,-1313.5,0.00011287,2]
[346611747,1735125057893,-668.38,0.00011287,2]
[346611748,1735125057903,-500.0,0.00011287,2]
[346611749,1735125057913,-1193.43,0.00011287,2]
[346611750,1735125057924,-419.96665569,0.00011287,2]
[346611751,1735125057937,-621.74,0.00011287,2]
[346611752,1735125057947,-1471.03,0.00011287,2]
[346611753,1735125057957,-705.13,0.00011287,2]
[346611754,1735125057968,-500.0,0.00011287,2]
[346611755,1735125057978,-511.09,0.00011287,2]
[346611756,1735125057988,-500.0,0.00011287,2]
[346611757,1735125057998,-500.0,0.00011287,2]
[346611758,1735125058008,-500.0,0.00011287,2]
[346611759,1735125058018,-761.91,0.00011287,2]
[346611760,1735125058028,-535.1,0.00011287,2]
[346611761,1735125058037,-962.47,0.00011287,2]
[346611762,1735125058048,-500.0,0.00011287,2]
[346611763,1735125058057,-500.0,0.00011287,2]
[346611764,1735125058067,-500.0,0.00011287,2]
[346611765,1735125058076,-839.07,0.00011287,2]
[346611766,1735125058086,-500.0,0.00011287,2]
[346611767,1735125058096,-500.0,0.00011287,2]
[346611768,1735125058105,-818.01,0.00011287,2]
[346611769,1735125058115,-500.0,0.00011287,2]
[346611770,1735125058125,-1483.43,0.00011287,2]
[346611771,1735125058134,-500.0,0.00011287,2]
[346611772,1735125058144,-1185.91,0.00011287,2]
[346611773,1735125058153,-597.72,0.00011287,2]
[346611774,1735125058163,-1260.17,0.00011287,2]
[346611775,1735125058177,-500.0,0.00011287,2]
[346611776,1735125058187,-500.0,0.00011287,2]
[346611777,1735125058197,-1563.5,0.00011287,2]
[346611778,1735125058207,-1504.3,0.00011287,2]
[346611779,1735125058217,-549.84,0.00011287,2]
[346611780,1735125058227,-500.0,0.00011287,2]
[346611781,1735125058237,-711.24,0.00011287,2]
[346611782,1735125058247,-500.0,0.00011287,2]
[346611783,1735125058257,-500.0,0.00011287,2]
[346611784,1735125058267,-1546.29,0.00011287,2]
[346611785,1735125058277,-709.25,0.00011287,2]
[346611786,1735125058287,-500.0,0.00011287,2]
[346611787,1735125058297,-1038.86,0.00011287,2]
[346611788,1735125058308,-517.32,0.00011287,2]
[346611789,1735125058317,-576.744741,0.00011287,2]
[346611790,1735125058327,-657.14,0.00011287,2]
[346611791,1735125058336,-500.0,0.00011287,2]
[346611792,1735125058346,-500.0,0.00011287,2]
[346611793,1735125058356,-551.02,0.00011287,2]
[346611794,1735125058365,-500.0,0.00011287,2]
[346611795,1735125058375,-500.0,0.00011287,2]
[346611796,1735125058385,-545.93,0.00011287,2]
[346611797,1735125058395,-630.99,0.00011287,2]
[346611798,1735125058404,-1319.1,0.00011287,2]
[346611799,1735125058414,-674.5,0.00011287,2]
[346611800,1735125058426,-555.12,0.00011287,2]
[346611801,1735125058436,-500.0,0.00011287,2]
[346611802,1735125058446,-500.0,0.00011287,2]
[346611803,1735125058455,-500.0,0.00011287,2]
[346611804,1735125058465,-567.37,0.00011287,2]
[346611805,1735125058475,-500.0,0.00011287,2]
[346611806,1735125058484,-799.25,0.00011287,2]
[346611807,1735125058494,-546.54,0.00011287,2]
[346611808,1735125058504,-556.39,0.00011287,2]
[346611809,1735125058513,-500.0,0.00011287,2]
[346611810,1735125058523,-731.38,0.00011287,2]
[346611811,1735125058532,-655.2,0.00011287,2]
[346611812,1735125058541,-500.0,0.00011287,2]
[346611813,1735125058550,-586.57,0.00011287,2]
[346611814,1735125058624,-782.71,0.00011287,2]
[346611815,1735125058634,-500.0,0.00011287,2]
[346611816,1735125058644,-1061.21,0.00011287,2]
[346611817,1735125058653,-500.0,0.00011287,2]
[346611818,1735125058663,-655.5,0.00011287,2]
[346611819,1735125058672,-1108.43,0.00011287,2]
[346611820,1735125058682,-671.69,0.00011287,2]
[346611821,1735125058691,-500.0,0.00011287,2]
[346611822,1735125058701,-921.69,0.00011287,2]
[346611823,1735125058710,-766.48,0.00011288,2]
[346611824,1735125058719,-2495.73,0.00011288,2]
[346611825,1735125058728,-914.28,0.00011288,2]
[346611826,1735125058740,-1504.72,0.00011288,2]
[346611827,1735125058750,-500.0,0.00011288,2]
[346611828,1735125058759,-1403.24,0.00011288,2]
[346611829,1735125058768,-515.56,0.00011288,2]
[346611830,1735125058779,-1872.65,0.00011288,2]
[346611831,1735125058790,-745.22,0.00011288,2]
[346611832,1735125058800,-500.0,0.00011288,2]
[346611833,1735125058810,-957.54,0.00011288,2]
[346611834,1735125058820,-589.77,0.00011288,2]
[346611835,1735125058829,-700.43,0.00011288,2]
[346611836,1735125058840,-416.66667,0.0001131,2]
[346611837,1735125058849,-200.0,0.00011347,2]
[346611838,1735125058858,-725.0,0.00011421,2]
[346611839,1735125058868,-201.6,0.00011505,2]
[346611840,1735125058878,-812.0,0.00011507,2]
[346611841,1735125058887,-201.32,0.00011513,2]
[346611842,1735125058896,-502.9930041,0.0001156,2]
[346611843,1735125058906,-500.0,0.0001156,2]
[346611844,1735125058916,-500.0,0.0001156,2]
[346611845,1735125058927,-500.0,0.0001156,2]
[346611846,1735125058937,-500.0,0.0001156,2]
[346611847,1735125058947,-500.0,0.0001156,2]
[346611848,1735125058956,-500.0,0.0001156,2]
[346611849,1735125058965,-500.0,0.0001156,2]
[346611850,1735125058974,-500.0,0.0001156,2]
[346611851,1735125058984,-500.0,0.0001156,2]
[346611852,1735125058993,-500.0,0.0001156,2]
[346611853,1735125059002,-500.0,0.0001156,2]
[346611854,1735125059012,-500.0,0.0001156,2]
[346611855,1735125059021,-500.0,0.0001156,2]
[346611856,1735125059031,-500.0,0.0001156,2]
[346611857,1735125059042,-500.0,0.0001156,2]
[346611858,1735125059051,-500.0,0.0001156,2]
[346611859,1735125059060,-500.0,0.0001156,2]
[346611860,1735125059069,-500.0,0.0001156,2]
[346611861,1735125059079,-500.0,0.0001156,2]
[346611862,1735125059088,-500.0,0.0001156,2]
[346611863,1735125059098,-500.0,0.0001156,2]
[346611864,1735125059107,-500.0,0.0001156,2]
[346611865,1735125059116,-500.0,0.0001156,2]
[346611866,1735125059127,-500.0,0.0001156,2]
[346611867,1735125059139,-500.0,0.0001156,2]
[346611868,1735125059147,-500.0,0.0001156,2]
[346611869,1735125059157,-500.0,0.0001156,2]
[346611870,1735125059166,-500.0,0.0001156,2]
[346611871,1735125059177,-500.0,0.0001156,2]
[346611872,1735125059187,-500.0,0.0001156,2]
[346611873,1735125059196,-500.0,0.0001156,2]
[346611874,1735125059206,-500.0,0.0001156,2]
[346611875,1735125059216,-500.0,0.0001156,2]
[346611876,1735125059226,-242.69122196,0.0001156,2]
[346611877,1735125059236,-500.0,0.0001156,2]
[346611878,1735125059245,-500.0,0.0001156,2]
[346611879,1735125059254,-500.0,0.0001156,2]
[346611880,1735125059263,-500.0,0.0001156,2]
[346611881,1735125059273,-612.98,0.0001156,2]
[346611882,1735125059283,-500.0,0.0001156,2]
[346611883,1735125059293,-500.0,0.0001156,2]
[346611884,1735125059302,-500.0,0.0001156,2]
[346611885,1735125059312,-500.0,0.0001156,2]
[346611886,1735125059321,-502.73706233,0.0001156,2]
[346611887,1735125059330,-183.66,0.0001156,2]
[346611888,1735125059339,-500.0,0.0001156,2]
[346611889,1735125059349,-500.0,0.0001156,2]
[346611890,1735125059358,-500.0,0.0001156,2]
[346611891,1735125059368,-404.03466506,0.0001156,2]
[346611892,1735125059377,-500.0,0.0001156,2]
[346611893,1735125059386,-500.0,0.0001156,2]
[346611894,1735125059396,-500.0,0.0001156,2]
[346611895,1735125059405,-500.0,0.0001156,2]
[346611896,1735125059415,-500.0,0.0001156,2]
[346611897,1735125059426,-500.0,0.0001156,2]
[346611898,1735125059436,-500.0,0.0001156,2]
[346611899,1735125059446,-505.84221613,0.0001156,2]
[346611900,1735125059456,-500.0,0.0001156,2]
[346611901,1735125059466,-500.0,0.0001156,2]
[346611902,1735125059475,-500.0,0.0001156,2]
[346611903,1735125059485,-500.0,0.0001156,2]
[346611904,1735125059494,-500.0,0.0001156,2]
[346611905,1735125059504,-500.0,0.0001156,2]
[346611906,1735125059514,-500.0,0.0001156,2]
[346611907,1735125059524,-500.0,0.0001156,2]
[346611908,1735125059533,-500.0,0.0001156,2]
[346611909,1735125059543,-500.0,0.0001156,2]
[346611910,1735125059551,-500.0,0.0001156,2]
[346611911,1735125059561,-500.0,0.0001156,2]
[346611912,1735125059571,-500.0,0.0001156,2]
[346611913,1735125059584,-500.0,0.0001156,2]
[346611914,1735125059594,-500.0,0.0001156,2]
[346611915,1735125059603,-510.75,0.0001156,2]
[346611916,1735125059613,-500.0,0.0001156,2]
[346611917,1735125059622,-509.3594999,0.0001156,2]
[346611918,1735125059631,-500.0,0.0001156,2]
[346611919,1735125059641,-500.0,0.0001156,2]
[346611920,1735125059650,-247.44404089,0.0001156,2]
[346611921,1735125059659,-503.77718765,0.0001156,2]
[346611922,1735125059669,-500.0,0.0001156,2]
[346611923,1735125059680,-500.0,0.0001156,2]
[346611924,1735125059689,-500.0,0.0001156,2]
[346611925,1735125059699,-500.0,0.0001156,2]
[346611926,1735125059709,-500.0,0.0001156,2]
[346611927,1735125059718,-500.0,0.0001156,2]
[346611928,1735125059728,-500.0,0.0001156,2]
[346611929,1735125059740,-500.0,0.0001156,2]
[346611930,1735125059749,-500.0,0.0001156,2]
[346611931,1735125059759,-500.0,0.0001156,2]
[346611932,1735125059768,-590.12,0.0001156,2]
[346611933,1735125059777,-500.0,0.0001156,2]
[346611934,1735125059787,-500.0,0.0001156,2]
[346611935,1735125059795,-500.0,0.0001156,2]
[346611936,1735125059805,-500.0,0.0001156,2]
[346611937,1735125059814,-500.0,0.0001156,2]
[346611938,1735125059823,-500.0,0.0001156,2]
[346611939,1735125059832,-500.0,0.0001156,2]
[346611940,1735125059842,-500.0,0.0001156,2]
[346611941,1735125059851,-508.72153367,0.0001156,2]
[346611942,1735125059860,-527.35,0.0001156,2]
[346611943,1735125059869,-500.0,0.0001156,2]
[346611944,1735125059878,-500.0,0.0001156,2]
[346611945,1735125059888,-500.0,0.0001156,2]
[346611946,1735125059897,-500.0,0.0001156,2]
[346611947,1735125059907,-500.0,0.0001156,2]
[346611948,1735125059916,-500.0,0.0001156,2]
[346611949,1735125059927,-500.0,0.0001156,2]
[346611950,1735125059935,-500.0,0.0001156,2]
[346611951,1735125059945,-500.0,0.0001156,2]
[346611952,1735125059954,-500.0,0.0001156,2]
[346611953,1735125059963,-500.0,0.0001156,2]
[346611954,1735125059972,-500.0,0.0001156,2]
[346611955,1735125059981,-500.0,0.0001156,2]
[346611956,1735125059990,-500.0,0.0001156,2]
[346611957,1735125060000,-500.0,0.0001156,2]
[346611958,1735125060009,-515.88,0.0001156,2]
[346611959,1735125060018,-500.0,0.0001156,2]
[346611960,1735125060028,-630.28,0.0001156,2]
[346611961,1735125060037,-500.0,0.0001156,2]
[346611962,1735125060046,-500.0,0.0001156,2]
[346611963,1735125060055,-500.0,0.0001156,2]
[346611964,1735125060065,-500.0,0.0001156,2]
[346611965,1735125060073,-500.0,0.0001156,2]
[346611966,1735125060083,-501.05203187,0.0001156,2]
[346611967,1735125060092,-500.0,0.0001156,2]
[346611968,1735125060102,-500.0,0.0001156,2]
[346611969,1735125060113,-500.0,0.0001156,2]
[346611970,1735125060122,-500.0,0.0001156,2]
[346611971,1735125060132,-500.0,0.0001156,2]
[346611972,1735125060141,-500.0,0.0001156,2]
[346611973,1735125060151,-500.0,0.0001156,2]
[346611974,1735125060160,-646.45,0.0001156,2]
[346611975,1735125060169,-500.0,0.0001156,2]
[346611976,1735125060182,-500.0,0.0001156,2]
[346611977,1735125060192,-500.0,0.0001156,2]
[346611978,1735125060201,-500.0,0.0001156,2]
[346611979,1735125060211,-724.23,0.0001156,2]
[346611980,1735125060220,-500.0,0.0001156,2]
[346611981,1735125060230,-627.16,0.0001156,2]
[346611982,1735125060239,-500.0,0.0001156,2]
[346611983,1735125060249,-500.0,0.0001156,2]
[346611984,1735125060258,-500.0,0.0001156,2]
[346611985,1735125060267,-500.0,0.0001156,2]
[346611986,1735125060277,-500.0,0.0001156,2]
[346611987,1735125060287,-500.0,0.0001156,2]
[346611988,1735125060296,-1009.13,0.0001156,2]
[346611989,1735125060306,-500.0,0.0001156,2]
[346611990,1735125060315,-500.0,0.0001156,2]
[346611991,1735125060324,-500.0,0.0001156,2]
[346611992,1735125060334,-500.0,0.0001156,2]
[346611993,1735125060343,-500.0,0.0001156,2]
[346611994,1735125060352,-500.0,0.0001156,2]
[346611995,1735125060362,-500.0,0.0001156,2]
[346611996,1735125060372,-657.99,0.0001156,2]
[346611997,1735125060382,-500.0,0.0001156,2]
[346611998,1735125060391,-500.0,0.0001156,2]
[346611999,1735125060401,-500.0,0.0001156,2]
[346612000,1735125060411,-500.0,0.0001156,2]
[346612001,1735125060422,-500.0,0.0001156,2]
[346612002,1735125060432,-500.0,0.0001156,2]
[346612003,1735125060442,-500.0,0.0001156,2]
[346612004,1735125060451,-500.0,0.0001156,2]
[346612005,1735125060461,-500.0,0.0001156,2]
[346612006,1735125060471,-500.0,0.0001156,2]
[346612007,1735125060480,-169.02,0.0001156,2]
[346612008,1735125060488,-500.0,0.0001156,2]
[346612009,1735125060498,-500.0,0.0001156,2]
[346612010,1735125060508,-723.12,0.0001156,2]
[346612011,1735125060517,-500.0,0.0001156,2]
[346612012,1735125060526,-539.83,0.0001156,2]
[346612013,1735125060535,-521.17,0.0001156,2]
[346612014,1735125060544,-500.0,0.0001156,2]
[346612015,1735125060554,-500.0,0.0001156,2]
[346612016,1735125060563,-500.0,0.0001156,2]
[346612017,1735125060571,-264.77680427,0.0001156,2]
[346612018,1735125060581,-500.0,0.0001156,2]
[346612019,1735125060590,-189.88009524,0.0001156,2]
[346612020,1735125060599,-500.0,0.0001156,2]
[346612021,1735125060608,-500.0,0.0001156,2]
[346612022,1735125060618,-841.44,0.0001156,2]
[346612023,1735125060627,-500.0,0.0001156,2]
[346612024,1735125060636,-500.0,0.0001156,2]
[346612025,1735125060646,-538.93,0.0001156,2]
[346612026,1735125060655,-500.0,0.0001156,2]
[346612027,1735125060664,-738.83,0.0001156,2]
[346612028,1735125060675,-642.09451,0.0001156,2]
[346612029,1735125060684,-500.0,0.0001156,2]
[346612030,1735125060694,-634.49,0.0001156,2]
[346612031,1735125060704,-500.0,0.0001156,2]
[346612032,1735125060713,-624.34,0.0001156,2]
[346612033,1735125060722,-500.0,0.0001156,2]
[346612034,1735125060731,-157.43431283,0.0001156,2]
[346612035,1735125060743,-526.29,0.0001156,2]
[346612036,1735125060752,-500.0,0.0001156,2]
[346612037,1735125060762,-500.0,0.0001156,2]
[346612038,1735125060771,-655.83,0.0001156,2]
[346612039,1735125060780,-670.52,0.0001156,2]
[346612040,1735125060789,-577.37,0.0001156,2]
[346612041,1735125060798,-331.31639,0.0001156,2]
[346612042,1735125060808,-500.0,0.0001156,2]
[346612043,1735125060818,-1023.89,0.0001156,2]
[346612044,1735125060827,-578.11,0.0001156,2]
[346612045,1735125060836,-500.0,0.0001156,2]
[346612046,1735125060845,-500.0,0.0001156,2]
[346612047,1735125060855,-314.376916,0.0001156,2]
[346612048,1735125060864,-677.34,0.0001156,2]
[346612049,1735125060873,-500.0,0.0001156,2]
[346612050,1735125060884,-371.26691718,0.0001156,2]
[346612051,1735125060894,-500.0,0.0001156,2]
[346612052,1735125060904,-500.0,0.0001156,2]
[346612053,1735125060914,-500.0,0.0001156,2]
[346612054,1735125060924,-888.27,0.0001156,2]
[346612055,1735125060937,-528.35,0.0001156,2]
[346612056,1735125060947,-1264.81,0.0001156,2]
[346612057,1735125060956,-500.0,0.0001156,2]
[346612058,1735125060965,-500.0,0.0001156,2]
[346612059,1735125060975,-1360.41,0.0001156,2]
[346612060,1735125060985,-615.37,0.0001156,2]
[346612061,1735125060995,-500.0,0.0001156,2]
[346612062,1735125061004,-500.0,0.0001156,2]
[346612063,1735125061014,-849.0,0.0001156,2]
[346612064,1735125061023,-500.0,0.0001156,2]
[346612065,1735125061033,-500.0,0.0001156,2]
[346612066,1735125061042,-1084.12,0.0001156,2]
[346612067,1735125061051,-500.0,0.0001156,2]
[346612068,1735125061060,-361.72521196,0.0001156,2]
[346612069,1735125061069,-5091.52,0.0001156,2]
[346612070,1735125061079,-500.0,0.0001156,2]
[346612071,1735125061088,-500.0,0.0001156,2]
[346612072,1735125061097,-688.6,0.0001156,2]
[346612073,1735125061106,-288.20743156,0.0001156,2]
[346612074,1735125061118,-1300.29,0.0001156,2]
[346612075,1735125061127,-500.0,0.0001156,2]
[346612076,1735125061136,-616.7,0.0001156,2]
[346612077,1735125061146,-500.0,0.0001156,2]
[346612078,1735125061155,-4750.19,0.0001156,2]
[346612079,1735125061165,-8072.16,0.0001156,2]
[346612080,1735125061177,-643.09,0.0001156,2]
[346612081,1735125061187,-500.0,0.0001156,2]
[346612082,1735125061196,-551.84,0.0001156,2]
[346612083,1735125061205,-542.9,0.0001156,2]
[346612084,1735125061215,-1314.98,0.0001156,2]
[346612085,1735125061224,-684.97,0.0001156,2]
[346612086,1735125061234,-500.0,0.0001156,2]
[346612087,1735125061243,-500.0,0.0001156,2]
[346612088,1735125061252,-2749.58,0.0001156,2]
[346612089,1735125061261,-500.0,0.0001156,2]
[346612090,1735125061271,-329.5373101,0.0001156,2]
[346612091,1735125061280,-1831.35,0.0001156,2]
[346612092,1735125061289,-500.0,0.0001156,2]
[346612093,1735125061298,-688.2,0.0001156,2]
[346612094,1735125061308,-869.82,0.0001156,2]
[346612095,1735125061318,-953.13,0.0001156,2]
[346612096,1735125061327,-3687.65,0.0001156,2]
[346612097,1735125061336,-917.65,0.0001156,2]
[346612098,1735125061345,-500.0,0.0001156,2]
[346612099,1735125061354,-1486.16,0.0001156,2]
[346612100,1735125061364,-503.92,0.0001156,2]
[346612101,1735125061373,-500.0,0.0001156,2]
[346612102,1735125061382,-4526.22,0.0001156,2]
[346612103,1735125061392,-1504.14,0.0001156,2]
[346612104,1735125061401,-1275.36,0.0001156,2]
[346612105,1735125061410,-500.0,0.0001156,2]
[346612106,1735125061420,-1509.46,0.0001156,2]
[346612107,1735125061430,-500.0,0.0001156,2]
[346612108,1735125061440,-617.29,0.0001156,2]
[346612109,1735125061450,-1701.85,0.0001156,2]
[346612110,1735125061459,-500.0,0.0001156,2]
[346612111,1735125061468,-3166.68,0.0001156,2]
[346612112,1735125061478,-500.0,0.0001156,2]
[346612113,1735125061487,-1104.98,0.0001156,2]
[346612114,1735125061496,-506.4,0.0001156,2]
[346612115,1735125061505,-500.0,0.0001156,2]
[346612116,1735125061514,-175.21,0.0001156,2]
[346612117,1735125061524,-500.0,0.0001156,2]
[346612118,1735125061533,-500.0,0.0001156,2]
[346612119,1735125061542,-500.0,0.0001156,2]
[346612120,1735125061551,-1698.41,0.0001156,2]
[346612121,1735125061561,-6085.96,0.0001156,2]
[346612122,1735125061571,-2970.33,0.0001156,2]
[346612123,1735125061580,-1543.09,0.0001156,2]
[346612124,1735125061589,-930.59,0.0001156,2]
[346612125,1735125061598,-2313.76,0.0001156,2]
[346612126,1735125061607,-2044.02,0.0001156,2]
[346612127,1735125061616,-500.0,0.0001156,2]
[346612128,1735125061625,-500.0,0.0001156,2]
[346612129,1735125061634,-768.8,0.0001156,2]
[346612130,1735125061643,-2761.74,0.0001156,2]
[346612131,1735125061652,-993.06,0.0001156,2]
[346612132,1735125061661,-707.78,0.0001156,2]
[346612133,1735125061669,-2421.79,0.0001156,2]
[346612134,1735125061679,-1019.47,0.0001156,2]
[346612135,1735125061689,-714.55,0.0001156,2]
[346612136,1735125061698,-10474.48,0.0001156,2]
[346612137,1735125061707,-791.89,0.0001156,2]
[346612138,1735125061716,-500.0,0.0001156,2]
[346612139,1735125061725,-2355.55,0.0001156,2]
[346612140,1735125061736,-505.61,0.0001156,2]
[346612141,1735125061746,-669.67,0.0001156,2]
[346612142,1735125061755,-500.0,0.0001156,2]
[346612143,1735125061764,-599.31,0.0001156,2]
[346612144,1735125061774,-500.0,0.0001156,2]
[346612145,1735125061784,-1901.98,0.0001156,2]
[346612146,1735125061794,-500.0,0.0001156,2]
[346612147,1735125061802,-2072.63,0.0001156,2]
[346612148,1735125061812,-500.0,0.0001156,2]
[346612149,1735125061821,-500.0,0.0001156,2]
[346612150,1735125061830,-1077.68,0.0001156,2]
[346612151,1735125061839,-1116.15,0.0001156,2]
[346612152,1735125061848,-1966.25,0.0001156,2]
[346612153,1735125061858,-500.0,0.0001156,2]
[346612154,1735125061867,-626.11,0.0001156,2]
[346612155,1735125061876,-826.62,0.0001156,2]
[346612156,1735125061886,-707.77,0.0001156,2]
[346612157,1735125061895,-1210.43,0.0001156,2]
[346612158,1735125061904,-500.0,0.0001156,2]
[346612159,1735125061913,-807.95,0.0001156,2]
[346612160,1735125061922,-1258.6,0.0001156,2]
[346612161,1735125061936,-7897.31,0.0001156,2]
[346612162,1735125061946,-500.0,0.0001156,2]
[346612163,1735125061954,-520.41,0.0001156,2]
[346612164,1735125061963,-700.89,0.0001156,2]
[346612165,1735125061973,-500.0,0.0001156,2]
[346612166,1735125061982,-500.0,0.0001156,2]
[346612167,1735125061991,-581.85,0.0001156,2]
[346612168,1735125062000,-500.0,0.0001156,2]
[346612169,1735125062009,-789.66,0.0001156,2]
[346612170,1735125062019,-664.67,0.0001156,2]
[346612171,1735125062028,-579.37,0.0001156,2]
[346612172,1735125062037,-500.0,0.0001156,2]
[346612173,1735125062046,-649.66,0.0001156,2]
[346612174,1735125062056,-1024.64,0.0001156,2]
[346612175,1735125062065,-526.36,0.0001156,2]
[346612176,1735125062074,-509.44,0.0001156,2]
[346612177,1735125062083,-1257.87,0.0001156,2]